bitfinex-derivatives/quotes_BTCF0:USTF0_20241213
["timestamp","ask_amount","ask_price","bid_price","bid_amount"]
[1734102210340,0.049478,101040.0,101030.0,0.00148442]
[1734102210533,0.1433857,101040.0,101030.0,0.00148442]
[1734102210935,0.2423613,101040.0,101030.0,0.00148442]
[1734102211836,0.1484536,101040.0,101030.0,0.00148442]
[1734102212135,0.2423613,101040.0,101030.0,0.00148442]
[1734102212337,0.2423613,101040.0,101030.0,0.01048442]
[1734102212541,0.19287595,101040.0,101030.0,0.01048442]
[1734102212845,0.24235395,101040.0,101030.0,0.01948442]
[1734102213834,0.25713536,101040.0,101030.0,0.01948442]
[1734102215545,0.11374231,101040.0,101030.0,0.01948442]
[1734102215745,0.11374231,101040.0,101030.0,0.06896742]
[1734102216138,0.20765001,101040.0,101030.0,0.01948442]
[1734102217147,0.30155771,101040.0,101030.0,0.01948442]
[1734102217345,0.66235771,101040.0,101030.0,0.018]
[1734102218653,0.61287236,101040.0,101030.0,0.018]
[1734102218947,0.71184796,101040.0,101030.0,0.018]
[1734102219747,2.21184796,101040.0,101030.0,0.018]
[1734102220450,0.61794026,101040.0,101030.0,0.018]
[1734102221141,0.71184796,101040.0,101030.0,0.018]
[1734102221549,0.66236261,101040.0,101030.0,0.018]
[1734102221843,0.71184061,101040.0,101030.0,0.018]
[1734102222649,0.049496,101010.0,101000.0,0.61168524]
[1734102223446,0.0989756,101010.0,101000.0,0.61168524]
[1734102223652,0.0989756,101010.0,101000.0,0.70559294]
[1734102223952,0.049487,101030.0,101020.0,0.049491]
[1734102224253,0.14849199,101030.0,101020.0,0.410291]
[1734102224640,0.09900664,101030.0,101020.0,0.5041987]
[1734102224949,0.14849064,101030.0,101020.0,0.5041987]
[1734102225150,0.14949064,101030.0,101020.0,0.5131987]
[1734102225350,0.14949064,101030.0,101020.0,0.419291]
[1734102225842,0.14949064,101030.0,101020.0,0.5131987]
[1734102226253,0.05148565,101030.0,101020.0,0.5191987]
[1734102227244,0.05148565,101030.0,101020.0,0.8799987]
[1734102227448,0.00200165,101030.0,101020.0,1.1799987]
[1734102227663,0.25471885,101070.0,101050.0,0.049474]
[1734102227846,0.13787811,101070.0,101060.0,0.5041767]
[1734102228044,0.2576808,101080.0,101060.0,0.8155077]
[1734102228349,0.2383431,101080.0,101070.0,0.049464]
[1734102228547,0.049464,101070.0,101060.0,0.5521747]
[1734102228748,0.054464,101070.0,101060.0,0.458267]
[1734102229251,0.051464,101070.0,101060.0,0.458267]
[1734102229441,0.049464,101070.0,101060.0,0.5531747]
[1734102229648,0.10089671,101080.0,101060.0,0.5531747]
[1734102229840,0.0124846,101080.0,101070.0,0.5041717]
[1734102230254,0.0619436,101080.0,101070.0,0.5041717]
[1734102230452,0.15035571,101080.0,101070.0,0.5041717]
[1734102230646,0.0619436,101080.0,101070.0,0.5041717]
[1734102230846,0.5675352,101090.0,101070.0,0.5041717]
[1734102231047,0.049459,101080.0,101070.0,0.5041717]
[1734102231239,0.049459,101080.0,101070.0,0.410264]
[1734102231747,0.2561942,101080.0,101070.0,0.410264]
[1734102231945,0.049459,101080.0,101070.0,0.410264]
[1734102232145,0.056459,101080.0,101070.0,0.411264]
[1734102232351,0.2631942,101080.0,101070.0,0.411264]
[1734102232646,0.14487111,101080.0,101070.0,0.411264]
[1734102232848,0.14887111,101080.0,101070.0,0.411264]
[1734102233242,0.060459,101080.0,101070.0,0.411264]
[1734102233839,0.06043265,101080.0,101070.0,0.411264]
[1734102234247,0.25327678,101080.0,101070.0,0.3618]
[1734102234649,0.25327678,101080.0,101070.0,0.411264]
[1734102234650,0.15936908,101080.0,101070.0,0.411264]
[1734102234954,1.65936908,101080.0,101070.0,0.411264]
[1734102235752,1.65936908,101080.0,101070.0,0.001]
[1734102236345,1.65936908,101080.0,101070.0,0.050464]
[1734102236854,0.09893643,101080.0,101070.0,0.050464]
[1734102237967,0.14839543,101080.0,101070.0,0.050464]
[1734102239946,0.09891008,101080.0,101070.0,0.050464]
[1734102240951,0.09891008,101080.0,101070.0,0.411264]
[1734102242951,0.3608,101090.0,101070.0,0.411264]
[1734102243159,0.3608,101090.0,101080.0,0.1433677]
[1734102243160,0.410257,101090.0,101080.0,0.1433677]
[1734102243355,0.50919343,101090.0,101080.0,0.1433677]
[1734102243759,0.410257,101090.0,101080.0,0.04946]
[1734102243954,0.50919343,101090.0,101080.0,0.04946]
[1734102244161,0.04946,101080.0,101070.0,0.410263]
[1734102244355,0.04946,101080.0,101070.0,0.411263]
[1734102244556,0.04946,101080.0,101070.0,0.5051707]
[1734102244753,0.14838664,101080.0,101070.0,0.5051707]
[1734102245057,0.14838664,101080.0,101070.0,0.5041707]
[1734102245260,0.14838664,101080.0,101070.0,0.42433043]
[1734102245761,0.14938664,101080.0,101070.0,0.42433043]
[1734102245954,0.09990129,101080.0,101070.0,0.42433043]
[1734102246356,0.001,101080.0,101070.0,0.51823813]
[1734102247052,0.002,101080.0,101070.0,0.51823813]
[1734102249055,0.3608,101100.0,101070.0,0.51823813]
[1734102249257,0.049454,101090.0,101080.0,0.5041607]
[1734102250052,0.3608,101100.0,101080.0,0.5041607]
[1734102250254,0.3608,101100.0,101090.0,0.049449]
[1734102250255,0.04945,101100.0,101090.0,0.049449]
[1734102250552,0.50917664,101100.0,101090.0,0.1433567]
[1734102250761,0.25545559,101110.0,101100.0,0.049448]
[1734102251065,0.26596034,101110.0,101100.0,0.049448]
[1734102251467,0.16246034,101110.0,101100.0,0.049448]
[1734102251654,0.41172328,101120.0,101110.0,0.049443]
[1734102251855,0.42579197,101120.0,101110.0,0.049443]
[1734102252061,0.09887451,101110.0,101100.0,0.001]
[1734102252362,0.6141507,101110.0,101100.0,0.001]
[1734102252566,0.35224799,101110.0,101100.0,0.001]
[1734102252767,0.71304799,101110.0,101100.0,0.001]
[1734102253254,0.049453,101090.0,101080.0,0.3608]
[1734102253458,0.1433607,101090.0,101080.0,0.3608]
[1734102253959,0.60306777,101090.0,101070.0,0.36228403]
[1734102254166,0.1433657,101080.0,101070.0,0.36228403]
[1734102254358,0.049458,101080.0,101070.0,0.41174703]
[1734102254558,0.049458,101080.0,101070.0,0.50565473]
[1734102254760,0.14838464,101080.0,101070.0,0.50565473]
[1734102254964,0.14838464,101080.0,101070.0,0.68034535]
[1734102255162,0.09889929,101080.0,101070.0,0.50765473]
[1734102255359,0.14835729,101080.0,101070.0,0.50765473]
[1734102255564,0.14835729,101080.0,101070.0,0.68534535]
[1734102256365,0.049456,101090.0,101070.0,0.91826618]
[1734102256563,0.049456,101090.0,101080.0,0.5041657]
[1734102256762,0.14839243,101090.0,101080.0,0.67885632]
[1734102256967,0.13803411,101100.0,101090.0,0.049453]
[1734102257167,0.04945,101100.0,101090.0,0.410253]
[1734102257364,0.23696075,101100.0,101090.0,0.410253]
[1734102257557,0.23696075,101100.0,101090.0,0.58494362]
[1734102257963,0.14837664,101100.0,101090.0,0.58794362]
[1734102258159,0.14837664,101100.0,101090.0,0.413253]
[1734102258160,0.1874754,101100.0,101090.0,0.413253]
[1734102258361,0.2369264,101100.0,101090.0,0.414253]
[1734102258660,0.35503854,101100.0,101090.0,0.414253]
[1734102258863,0.35503854,101100.0,101090.0,0.68285132]
[1734102258864,0.25614725,101100.0,101090.0,0.68285132]
[1734102259173,0.25614725,101100.0,101090.0,0.5642607]
[1734102259368,0.25614725,101100.0,101090.0,0.6239607]
[1734102259968,0.13803511,101100.0,101090.0,0.79865132]
[1734102260368,0.13803511,101100.0,101090.0,0.87796445]
[1734102260369,0.14836786,101100.0,101090.0,0.87796445]
[1734102260666,0.14836786,101100.0,101090.0,0.64504362]
[1734102260870,0.14836786,101100.0,101090.0,0.87796445]
[1734102261070,0.14836786,101100.0,101090.0,0.73895132]
[1734102261260,0.14833351,101100.0,101090.0,0.73895132]
[1734102261976,0.14833351,101100.0,101090.0,0.97187215]
[1734102264167,0.09884816,101100.0,101090.0,0.97187215]
[1734102264572,0.09884816,101100.0,101090.0,0.82851145]
[1734102265469,0.09884816,101100.0,101090.0,0.59559062]
[1734102266764,0.19275586,101100.0,101090.0,0.53949062]
[1734102267072,0.39945211,101100.0,101090.0,0.004]
[1734102267267,0.26138265,101100.0,101090.0,0.004]
[1734102267572,0.86873969,101100.0,101090.0,0.004]
[1734102267758,0.92779577,101100.0,101090.0,0.004]
[1734102268072,0.92779577,101100.0,101090.0,0.001]
[1734102268267,0.75062755,101100.0,101090.0,0.001]
[1734102268570,0.92779577,101100.0,101090.0,0.001]
[1734102268772,0.29591985,101100.0,101090.0,0.001]
[1734102269071,0.049453,101090.0,101080.0,0.67885632]
[1734102269373,0.16782423,101090.0,101080.0,0.67885632]
[1734102269770,0.35553025,101090.0,101080.0,0.67885632]
[1734102269972,0.35553025,101090.0,101080.0,0.58494862]
[1734102270368,0.23715902,101090.0,101080.0,0.67885632]
[1734102270676,0.23715902,101090.0,101080.0,0.58794862]
[1734102270972,0.14836986,101090.0,101080.0,0.58894862]
[1734102271366,0.23715902,101090.0,101080.0,0.58894862]
[1734102271560,0.23715902,101090.0,101080.0,0.82186945]
[1734102271766,0.14836986,101090.0,101080.0,0.82186945]
[1734102272363,0.23715902,101090.0,101080.0,0.82186945]
[1734102272666,0.23815902,101090.0,101080.0,0.82086945]
[1734102273269,0.18867367,101090.0,101080.0,0.82086945]
[1734102273566,0.18767367,101090.0,101080.0,0.81886945]
[1734102274368,0.18767367,101090.0,101080.0,0.82186945]
[1734102274967,0.28158137,101090.0,101080.0,0.82186945]
[1734102275465,0.33638137,101090.0,101080.0,0.82186945]
[1734102275659,0.29677367,101090.0,101080.0,0.82186945]
[1734102275860,0.24197367,101090.0,101080.0,0.82186945]
[1734102276066,0.18767367,101090.0,101080.0,0.82186945]
[1734102276470,0.13818832,101090.0,101080.0,0.82186945]
[1734102276663,0.23711496,101090.0,101080.0,0.82186945]
[1734102279369,0.18762961,101090.0,101080.0,0.82186945]
[1734102279570,0.23708261,101090.0,101080.0,0.64717883]
[1734102279779,0.33099031,101090.0,101080.0,0.64717883]
[1734102279976,0.33099031,101090.0,101080.0,0.82240113]
[1734102280176,0.23708261,101090.0,101080.0,0.82240113]
[1734102280477,0.23708261,101090.0,101080.0,0.64717883]
[1734102282273,0.33099031,101090.0,101080.0,0.64717883]
[1734102282483,0.28150496,101090.0,101080.0,0.64717883]
[1734102282667,0.18759726,101090.0,101080.0,0.82241617]
[1734102283366,0.18759726,101090.0,101080.0,0.64717883]
[1734102284169,0.18759726,101090.0,101080.0,0.82243834]
[1734102284875,0.18759726,101090.0,101080.0,0.64717883]
[1734102285468,0.13811191,101090.0,101080.0,0.64717883]
[1734102286280,0.13811191,101090.0,101080.0,0.59772083]
[1734102286470,0.23201961,101090.0,101080.0,0.41222541]
[1734102286775,0.79645979,101090.0,101080.0,0.004]
[1734102287073,0.79645979,101090.0,101070.0,0.77050944]
[1734102287074,0.049458,101080.0,101070.0,0.76902541]
[1734102287274,0.2005657,101080.0,101070.0,0.76902541]
[1734102287785,0.29949234,101080.0,101070.0,0.76902541]
[1734102288467,0.25000699,101080.0,101070.0,0.53610458]
[1734102288672,0.29946499,101080.0,101070.0,0.53910458]
[1734102289778,0.29946499,101080.0,101070.0,0.54010458]
[1734102291671,0.24997964,101080.0,101070.0,0.54010458]
[1734102292272,0.049463,101070.0,101060.0,0.40822541]
[1734102292475,0.2372784,101070.0,101060.0,0.17530458]
[1734102292870,0.049468,101060.0,101050.0,0.59372083]
[1734102293076,0.2036757,101060.0,101050.0,0.59372083]
[1734102293376,0.2036757,101060.0,101050.0,0.7690453]
[1734102293683,0.30262192,101060.0,101050.0,0.94511893]
[1734102294585,0.25413657,101060.0,101050.0,0.95411893]
[1734102294785,0.30360457,101060.0,101050.0,0.95411893]
[1734102295687,0.36020457,101060.0,101050.0,0.54506155]
[1734102296074,0.36020457,101060.0,101050.0,0.55406155]
[1734102297275,0.37357587,101060.0,101050.0,0.55406155]
[1734102297479,0.27966817,101060.0,101050.0,0.55406155]
[1734102297690,0.23018282,101060.0,101050.0,0.55406155]
[1734102297887,0.32409052,101060.0,101050.0,0.55406155]
[1734102298279,0.32409052,101060.0,101050.0,0.3788]
[1734102299794,0.68489052,101060.0,101050.0,0.018]
[1734102300085,0.049473,101050.0,101040.0,0.23368209]
[1734102300294,0.5602807,101050.0,101040.0,0.23368209]
[1734102300497,1.10202883,101050.0,101040.0,0.23368209]
[1734102300684,1.15149949,101050.0,101040.0,0.23368209]
[1734102300988,1.10706479,101050.0,101040.0,0.23368209]
[1734102301284,1.20097249,101050.0,101040.0,0.23368209]
[1734102301483,1.20097249,101050.0,101020.0,0.89019412]
[1734102301484,0.049482,101030.0,101020.0,0.89019412]
[1734102301676,0.1433897,101030.0,101020.0,0.82819412]
[1734102302076,0.2423555,101030.0,101020.0,0.82819412]
[1734102302275,0.1484478,101030.0,101020.0,0.82819412]
[1734102302487,0.2423555,101030.0,101020.0,0.82819412]
[1734102303292,0.2433555,101030.0,101020.0,0.83719412]
[1734102303486,0.3031555,101030.0,101020.0,0.83719412]
[1734102303687,0.3031555,101030.0,101020.0,0.48039412]
[1734102303688,0.25467015,101030.0,101020.0,0.48039412]
[1734102303999,0.30415215,101030.0,101020.0,0.48039412]
[1734102305082,0.21024445,101030.0,101020.0,0.84119412]
[1734102305377,0.30415215,101030.0,101020.0,0.84119412]
[1734102305792,0.30415215,101030.0,101020.0,0.3738]
[1734102306594,0.31785599,101030.0,101020.0,0.3738]
[1734102306792,0.26837064,101030.0,101020.0,0.3738]
[1734102307788,0.20857064,101030.0,101020.0,0.3738]
[1734102309888,0.15908529,101030.0,101020.0,0.3738]
[1734102310194,0.25807068,101030.0,101020.0,0.3738]
[1734102313087,0.22668833,101030.0,101020.0,0.3738]
[1734102313288,0.27617033,101030.0,101020.0,0.3738]
[1734102314397,0.18226263,101030.0,101020.0,0.3738]
[1734102314584,0.16217123,101030.0,101020.0,0.4677077]
[1734102314784,0.16217123,101030.0,101020.0,0.5171947]
[1734102315284,0.25607893,101030.0,101020.0,0.3738]
[1734102315507,0.25607893,101030.0,101020.0,0.013]
[1734102315897,0.20659358,101030.0,101020.0,0.013]
[1734102318695,0.2200388,101030.0,101020.0,0.013]
[1734102319198,0.17055345,101030.0,101020.0,0.013]
[1734102320195,1.67055345,101030.0,101020.0,0.013]
[1734102321790,0.17055345,101030.0,101020.0,0.013]
[1734102322095,0.01344522,101030.0,101020.0,0.423287]
[1734102322293,0.09898539,101030.0,101020.0,0.423287]
[1734102322596,0.24237509,101030.0,101020.0,0.3738]
[1734102325202,0.19288974,101030.0,101020.0,0.3738]
[1734102326006,0.09898204,101030.0,101020.0,0.423287]
[1734102327206,0.09898204,101030.0,101020.0,0.419287]
[1734102327401,0.09898204,101030.0,101020.0,0.46359695]
[1734102327605,0.09898204,101030.0,101020.0,0.414287]
[1734102328097,0.04949669,101030.0,101020.0,0.414287]
[1734102328302,0.04949669,101030.0,101020.0,0.411287]
[1734102328602,0.19688209,101030.0,101020.0,0.58642108]
[1734102328797,0.04949669,101030.0,101020.0,0.58642108]
[1734102329108,0.1473854,101040.0,101020.0,1.14060519]
[1734102329307,0.049473,101050.0,101040.0,0.049477]
[1734102329605,0.2564433,101070.0,101040.0,1.0970265]
[1734102329606,0.32042868,101070.0,101040.0,1.0970265]
[1734102329810,0.049469,101060.0,101050.0,0.22532221]
[1734102330105,0.14845439,101060.0,101050.0,0.62943009]
[1734102330300,0.16792508,101060.0,101050.0,0.58612221]
[1734102330515,0.26688109,101060.0,101050.0,0.58612221]
[1734102331008,0.26688109,101060.0,101050.0,0.62941813]
[1734102331194,0.14842501,101060.0,101050.0,0.410268]
[1734102331398,0.14842501,101060.0,101050.0,0.58712221]
[1734102331907,0.14842501,101060.0,101050.0,0.63041486]
[1734102332104,0.14842501,101060.0,101050.0,0.45456065]
[1734102332309,0.14842501,101060.0,101050.0,0.51636065]
[1734102332511,0.24233271,101060.0,101050.0,0.46689265]
[1734102333412,0.24233271,101060.0,101050.0,0.4236]
[1734102333807,0.24233271,101060.0,101050.0,0.473073]
[1734102334006,0.14842501,101060.0,101050.0,0.473073]
[1734102334209,0.14644541,101060.0,101050.0,0.473073]
[1734102335709,0.14644541,101060.0,101050.0,0.51636595]
[1734102335917,0.14644541,101060.0,101050.0,0.4236]
[1734102335918,0.24035311,101060.0,101050.0,0.4236]
[1734102336113,0.24035311,101060.0,101050.0,0.3618]
[1734102336916,0.30365311,101060.0,101050.0,0.3618]
[1734102337109,0.60365311,101060.0,101050.0,0.3618]
[1734102337310,1.05836081,101060.0,101050.0,0.001]
[1734102337508,0.049473,101050.0,101040.0,0.3608]
[1734102337807,0.2011807,101050.0,101040.0,0.3608]
[1734102338203,0.30013671,101050.0,101040.0,0.3608]
[1734102338906,0.30013671,101050.0,101040.0,0.3658]
[1734102339112,0.75484441,101050.0,101040.0,0.005]
[1734102340311,0.66093671,101050.0,101040.0,0.005]
[1734102340614,0.66193671,101050.0,101040.0,0.014]
[1734102340810,2.25584441,101050.0,101040.0,0.014]
[1734102341201,2.55584441,101050.0,101040.0,0.014]
[1734102343018,0.049482,101030.0,101010.0,0.66003891]
[1734102343204,0.1433947,101020.0,101010.0,0.16669451]
[1734102343406,0.1433947,101020.0,101010.0,0.16520981]
[1734102343608,0.2423605,101020.0,101010.0,0.1219]
[1734102343813,0.6031605,101020.0,101010.0,0.1219]
[1734102344114,0.6031605,101020.0,101010.0,0.10121426]
[1734102344312,0.6031605,101020.0,101010.0,0.0579]
[1734102344717,0.6611605,101020.0,101010.0,0.0759]
[1734102345527,0.6621605,101020.0,101010.0,0.0759]
[1734102345709,0.6621605,101020.0,101010.0,0.11921453]
[1734102346111,0.6621605,101020.0,101010.0,0.06131453]
[1734102346722,0.67920842,101020.0,101010.0,0.06131453]
[1734102347513,0.67920842,101020.0,101010.0,0.05231453]
[1734102347714,0.68020842,101020.0,101010.0,0.05531453]
[1734102347914,0.68020842,101020.0,101010.0,0.012]
[1734102350219,0.77411612,101020.0,101010.0,0.012]
[1734102350523,1.549492,101010.0,100990.0,0.23715421]
[1734102350715,0.5042047,101000.0,100990.0,0.1046187]
[1734102351018,0.5042047,101000.0,100990.0,0.0433187]
[1734102351212,0.60319989,101000.0,100990.0,0.0433187]
[1734102351627,0.049502,100990.0,100980.0,0.22475421]
[1734102351823,0.5981174,100990.0,100980.0,0.0433187]
[1734102352120,0.049512,100970.0,100960.0,0.35052313]
[1734102352315,0.049517,100960.0,100950.0,0.3608]
[1734102352512,0.1434247,100960.0,100950.0,0.3608]
[1734102352719,0.2424493,100960.0,100950.0,0.3608]
[1734102352922,0.2874493,100960.0,100950.0,0.3608]
[1734102353328,0.049526,100940.0,100930.0,0.16278592]
[1734102353623,0.1434337,100940.0,100930.0,0.16278592]
[1734102353822,0.1434337,100940.0,100930.0,0.11408592]
[1734102353823,0.5042337,100940.0,100930.0,0.11408592]
[1734102354024,0.14858003,100940.0,100930.0,0.4734]
[1734102354214,0.14858003,100940.0,100930.0,0.522931]
[1734102354409,0.04335155,100940.0,100930.0,0.6168387]
[1734102354610,0.049525,100950.0,100940.0,0.049526]
[1734102354812,0.049525,100950.0,100940.0,0.410326]
[1734102355013,0.049525,100950.0,100940.0,0.457326]
[1734102355220,0.1434327,100950.0,100940.0,0.4078]
[1734102355418,0.24249654,100950.0,100940.0,0.4078]
[1734102356120,0.24349654,100950.0,100940.0,0.4078]
[1734102356320,0.24349654,100950.0,100940.0,0.3608]
[1734102357215,0.24449654,100950.0,100940.0,0.3638]
[1734102358117,0.33840424,100950.0,100940.0,0.3638]
[1734102358523,0.33840424,100950.0,100940.0,0.003]
[1734102358524,0.38650424,100950.0,100940.0,0.003]
[1734102358719,0.74730424,100950.0,100940.0,0.003]
[1734102359428,0.049531,100930.0,100920.0,0.049534]
[1734102359732,0.5537747,100930.0,100910.0,0.455541]
[1734102359920,0.0939077,100920.0,100910.0,0.455541]
[1734102360625,0.0939077,100920.0,100910.0,0.3608]
[1734102360626,0.24253699,100920.0,100910.0,0.3608]
[1734102360828,0.049541,100910.0,100900.0,0.198842]
[1734102361147,0.1434487,100910.0,100900.0,0.198842]
[1734102361423,0.24255181,100910.0,100900.0,0.198842]
[1734102361629,0.24255181,100910.0,100900.0,0.1493]
[1734102361826,0.60335181,100910.0,100900.0,0.1]
[1734102362021,0.60335181,100910.0,100900.0,0.14334774]
[1734102362326,0.60435181,100910.0,100900.0,0.1]
[1734102362526,0.049546,100900.0,100890.0,0.04091787]
[1734102362725,0.049556,100880.0,100870.0,0.4082]
[1734102363026,0.049561,100870.0,100860.0,0.3608]
[1734102363326,0.19117836,100870.0,100860.0,0.3608]
[1734102363835,0.14870341,100870.0,100860.0,0.410366]
[1734102364323,0.29032077,100870.0,100860.0,0.3608]
[1734102364923,0.29132077,100870.0,100860.0,0.3608]
[1734102365429,0.65212077,100870.0,100850.0,0.3608]
[1734102365627,0.19118336,100860.0,100850.0,0.3608]
[1734102366329,0.29032577,100860.0,100850.0,0.3608]
[1734102366525,0.14870841,100860.0,100850.0,0.3608]
[1734102366727,0.14870841,100860.0,100850.0,0.411371]
[1734102367124,0.09914241,100860.0,100850.0,0.411371]
[1734102367320,0.002,100870.0,100850.0,0.55298836]
[1734102367629,0.10015224,100870.0,100860.0,0.456666]
[1734102368132,0.14871324,100870.0,100860.0,0.456666]
[1734102368329,0.2903306,100870.0,100860.0,0.456666]
[1734102368533,0.2903306,100870.0,100860.0,0.095866]
[1734102368724,0.2913306,100870.0,100860.0,0.095866]
[1734102369028,0.2913306,100870.0,100860.0,0.11135793]
[1734102369534,0.2913306,100870.0,100860.0,0.06505793]
[1734102369925,0.2923306,100870.0,100860.0,0.06505793]
[1734102370332,0.2923306,100870.0,100860.0,0.049566]
[1734102370830,0.10115224,100870.0,100860.0,0.411366]
[1734102371724,0.10115224,100870.0,100860.0,0.42685796]
[1734102372027,0.10115224,100870.0,100860.0,0.411366]
[1734102372727,0.15071324,100870.0,100860.0,0.411366]
[1734102372930,0.2923306,100870.0,100860.0,0.411366]
[1734102373834,0.15071324,100870.0,100860.0,0.411366]
[1734102374325,0.2923306,100870.0,100860.0,0.411366]
[1734102374924,0.15071324,100870.0,100860.0,0.411366]
[1734102375527,0.002,100870.0,100860.0,0.94688336]
[1734102375721,0.049552,100890.0,100880.0,0.049551]
[1734102375722,0.049551,100890.0,100880.0,0.049551]
[1734102375926,0.049547,100900.0,100890.0,0.049551]
[1734102376525,0.14868941,100900.0,100890.0,0.410351]
[1734102378134,0.14868941,100900.0,100890.0,0.049551]
[1734102378439,0.14968941,100900.0,100890.0,0.410351]
[1734102378627,0.15068941,100900.0,100890.0,0.410351]
[1734102380336,0.15068941,100900.0,100890.0,0.458251]
[1734102381026,0.05102943,100910.0,100890.0,0.89986836]
[1734102381227,0.05102943,100910.0,100900.0,0.55196336]
[1734102381432,0.049537,100920.0,100910.0,0.049541]
[1734102381634,0.049537,100920.0,100910.0,0.410341]
[1734102381829,0.35997202,100930.0,100920.0,0.049536]
[1734102382030,0.260864,100930.0,100920.0,0.3608]
[1734102382432,0.35997202,100930.0,100920.0,0.3608]
[1734102382935,0.86238938,100930.0,100910.0,0.3608]
[1734102383134,0.19115336,100920.0,100910.0,0.3608]
[1734102383535,0.049536,100920.0,100910.0,0.3608]
[1734102383733,0.14862438,100920.0,100910.0,0.3608]
[1734102383928,0.29024174,100920.0,100910.0,0.3608]
[1734102384334,0.14862438,100920.0,100910.0,0.3608]
[1734102385334,1.64862438,100920.0,100910.0,0.3608]
[1734102385631,1.64862438,100920.0,100910.0,0.410341]
[1734102385838,0.14962438,100920.0,100910.0,0.457741]
[1734102386233,0.14962438,100920.0,100910.0,0.4082]
[1734102386538,0.29124174,100920.0,100910.0,0.3608]
[1734102386743,0.14962438,100920.0,100910.0,0.3608]
[1734102387241,0.14962438,100920.0,100910.0,0.45369619]
[1734102387438,0.14962438,100920.0,100910.0,0.410341]
[1734102388229,0.14962438,100920.0,100910.0,0.45369579]
[1734102390047,0.001,100920.0,100910.0,0.410341]
[1734102390236,0.001,100920.0,100910.0,0.45369453]
[1734102391244,0.049546,100900.0,100890.0,0.04335353]
[1734102391443,0.19116336,100900.0,100890.0,0.3608]
[1734102391632,0.19116336,100900.0,100890.0,0.40415585]
[1734102391836,0.19116336,100900.0,100890.0,0.40416028]
[1734102391837,1.79025665,100900.0,100890.0,0.40416028]
[1734102392346,1.79125665,100900.0,100890.0,0.40716028]
[1734102392739,2.59467401,100900.0,100870.0,0.59360392]
[1734102392939,0.33279072,100880.0,100870.0,0.3608]
[1734102393242,0.33279072,100880.0,100860.0,0.59509112]
[1734102393243,0.049561,100870.0,100860.0,0.59509112]
[1734102393441,0.19117836,100870.0,100860.0,0.59509112]
[1734102394035,0.29031094,100870.0,100860.0,0.88719373]
[1734102394246,0.29031094,100870.0,100860.0,0.59509112]
[1734102394442,0.29031094,100870.0,100860.0,0.64465712]
[1734102394750,0.29031094,100870.0,100860.0,0.4118532]
[1734102395343,0.29131094,100870.0,100860.0,0.4118532]
[1734102395651,0.29231094,100870.0,100860.0,0.4128532]
[1734102395847,0.29231094,100870.0,100860.0,0.3632872]
[1734102396544,0.29231094,100870.0,100860.0,0.4128532]
[1734102397044,0.002,100870.0,100860.0,0.4128532]
[1734102397841,0.002,100870.0,100860.0,0.69435712]
[1734102398047,0.002,100870.0,100860.0,0.99435712]
[1734102399044,0.002,100870.0,100860.0,1.13597448]
[1734102399239,0.049554,100890.0,100880.0,0.049556]
[1734102399440,0.049554,100890.0,100880.0,0.410356]
[1734102399737,0.14869641,100890.0,100880.0,0.410356]
[1734102400342,0.049547,100900.0,100890.0,0.049547]
[1734102400647,0.049547,100900.0,100890.0,0.410347]
[1734102401345,0.049544,100910.0,100900.0,0.049546]
[1734102401542,0.11311334,100920.0,100910.0,0.049541]
[1734102401743,0.097938,100920.0,100910.0,0.049541]
[1734102402046,0.33866829,100920.0,100910.0,0.049541]
[1734102402435,0.33866829,100920.0,100910.0,0.410341]
[1734102403050,0.33866829,100920.0,100910.0,0.3608]
[1734102403245,0.33866829,100920.0,100910.0,0.410341]
[1734102403639,0.19705093,100920.0,100910.0,0.410341]
[1734102404151,0.09911293,100920.0,100910.0,0.410341]
[1734102404456,0.09911293,100920.0,100910.0,0.45369616]
[1734102404745,0.63722235,100930.0,100920.0,0.049536]
[1734102405149,0.72075529,100930.0,100920.0,0.049536]
[1734102405653,0.80953282,100930.0,100920.0,0.049536]
[1734102405945,0.81253282,100930.0,100920.0,0.049536]
[1734102406151,0.81753282,100930.0,100920.0,0.049536]
[1734102408254,0.72875529,100930.0,100920.0,0.049536]
[1734102410948,0.36795529,100930.0,100920.0,0.049536]
[1734102412259,0.72875529,100930.0,100920.0,0.049536]
[1734102415053,0.049541,100910.0,100900.0,0.23457344]
[1734102415358,0.86547518,100910.0,100900.0,0.04335325]
[1734102415545,0.96297518,100910.0,100900.0,0.04335325]
[1734102415742,1.15085582,100910.0,100900.0,0.04335325]
[1734102416458,1.15185582,100910.0,100900.0,0.04435325]
[1734102416748,1.15185582,100910.0,100890.0,0.04955]
[1734102416950,0.50468018,100900.0,100890.0,0.09290473]
[1734102417260,0.410346,100900.0,100890.0,0.09290473]
[1734102417756,0.50945893,100900.0,100890.0,0.09290473]
[1734102417945,0.50945893,100900.0,100890.0,0.09390473]
[1734102418147,0.51045893,100900.0,100890.0,0.09390473]
[1734102418461,0.65195313,100900.0,100890.0,0.04435473]
[1734102418755,0.049551,100890.0,100880.0,0.049555]
[1734102419355,0.14866393,100890.0,100880.0,0.049555]
[1734102420157,0.14966393,100890.0,100880.0,0.049555]
[1734102420961,0.10011293,100890.0,100880.0,0.410355]
[1734102421157,0.001,100900.0,100880.0,1.08645773]
[1734102421455,0.049538,100920.0,100890.0,0.78645373]
[1734102421646,0.1414942,100900.0,100890.0,0.28415853]
[1734102421848,0.60141205,100900.0,100880.0,0.50101573]
[1734102422053,0.1910452,100890.0,100880.0,0.2664072]
[1734102422359,0.049551,100890.0,100880.0,0.2664072]
[1734102422655,0.049551,100890.0,100880.0,0.3159632]
[1734102422859,0.14867376,100890.0,100880.0,0.3159632]
[1734102423153,0.09912276,100890.0,100880.0,0.6767632]
[1734102423455,0.049548,100900.0,100880.0,0.6767632]
[1734102423762,0.29016496,100900.0,100890.0,0.049551]
[1734102424456,0.049551,100890.0,100880.0,1.00873596]
[1734102424653,0.049551,100890.0,100880.0,0.64793596]
[1734102424857,0.1920452,100890.0,100880.0,0.50198096]
[1734102425058,0.39305813,100890.0,100880.0,0.2674072]
[1734102425658,0.39205813,100890.0,100880.0,0.2674072]
[1734102425863,0.39305813,100890.0,100880.0,0.0340072]
[1734102426159,0.84263566,100890.0,100870.0,0.59540853]
[1734102426359,0.1910502,100880.0,100870.0,0.59540853]
[1734102426950,0.29017787,100880.0,100870.0,0.63878006]
[1734102427553,0.29017787,100880.0,100870.0,0.40417153]
[1734102428259,0.43267207,100880.0,100870.0,0.40417153]
[1734102428963,0.14968367,100880.0,100870.0,0.40417153]
[1734102429161,0.29117787,100880.0,100870.0,0.40417153]